[Event "Late-Titled-Tuesday-Blitz-September-26-2023"]
[Site "Chess.com"]
[Date "2023.09.26"]
[Round "7"]
[White "tarno17"]
[Black "PapaieDudu"]
[Result "0-1"]
[WhiteElo "2165"]
[BlackElo "2408"]
[TimeControl "180+1"]
[EndTime "15:15:34 PDT"]
[Termination "PapaieDudu won by checkmate"]

1. e4 {[%clk 0:03:00.9]} 1... c5 {[%clk 0:02:59.1]} 2. Nf3 {[%clk 0:03:00.9]}
2... d6 {[%clk 0:02:59.2]} 3. Bb5+ {[%clk 0:03:00.9]} 3... Nd7 {[%clk
0:02:58.8]} 4. O-O {[%clk 0:03:00.8]} 4... Nf6 {[%clk 0:02:59]} 5. Re1 {[%clk
0:02:59.8]} 5... a6 {[%clk 0:02:59.1]} 6. Bf1 {[%clk 0:02:59.7]} 6... Qc7 {[%clk
0:02:48]} 7. d3 {[%clk 0:02:53.3]} 7... e6 {[%clk 0:02:42.5]} 8. g3 {[%clk
0:02:51.3]} 8... Be7 {[%clk 0:02:42.9]} 9. Bg2 {[%clk 0:02:51.7]} 9... b5 {[%clk
0:02:43.6]} 10. Nc3 {[%clk 0:02:51.6]} 10... Bb7 {[%clk 0:02:43.5]} 11. a3
{[%clk 0:02:23.2]} 11... Nb6 {[%clk 0:02:33.3]} 12. d4 {[%clk 0:01:49.7]} 12...
cxd4 {[%clk 0:02:32.8]} 13. Nxd4 {[%clk 0:01:50.1]} 13... O-O {[%clk 0:02:32.7]}
14. Be3 {[%clk 0:01:42.9]} 14... Rfd8 {[%clk 0:02:28.6]} 15. Qe2 {[%clk
0:01:18.1]} 15... Nc4 {[%clk 0:02:28.7]} 16. Rab1 {[%clk 0:01:14.8]} 16... Nxe3
{[%clk 0:02:25.8]} 17. Qxe3 {[%clk 0:01:15.7]} 17... Rac8 {[%clk 0:02:21.5]} 18.
Rbd1 {[%clk 0:01:00]} 18... h6 {[%clk 0:02:21.3]} 19. h3 {[%clk 0:00:56.5]}
19... Qc5 {[%clk 0:02:06]} 20. Nb3 {[%clk 0:00:46.9]} 20... Qc7 {[%clk
0:02:04.4]} 21. Rd2 {[%clk 0:00:41.6]} 21... Bc6 {[%clk 0:01:53.5]} 22. Red1
{[%clk 0:00:37.9]} 22... a5 {[%clk 0:01:48.5]} 23. Nd4 {[%clk 0:00:35]} 23... b4
{[%clk 0:01:43.9]} 24. axb4 {[%clk 0:00:26]} 24... axb4 {[%clk 0:01:43.8]} 25.
Ncb5 {[%clk 0:00:25.6]} 25... Bxb5 {[%clk 0:01:38.1]} 26. Nxb5 {[%clk
0:00:26.5]} 26... Qa5 {[%clk 0:01:37.4]} 27. Nd4 {[%clk 0:00:26]} 27... d5
{[%clk 0:01:35.7]} 28. e5 {[%clk 0:00:25.8]} 28... Nd7 {[%clk 0:01:34.4]} 29. f4
{[%clk 0:00:22.9]} 29... Qb6 {[%clk 0:01:22.5]} 30. Kh1 {[%clk 0:00:22.9]} 30...
Qb7 {[%clk 0:00:59.9]} 31. Qf3 {[%clk 0:00:18.9]} 31... Rc7 {[%clk 0:00:52.4]}
32. f5 {[%clk 0:00:19.1]} 32... Nxe5 {[%clk 0:00:51.6]} 33. Qf4 {[%clk
0:00:15.8]} 33... Nc4 {[%clk 0:00:44.7]} 34. fxe6 {[%clk 0:00:14.7]} 34... Bg5
{[%clk 0:00:43.1]} 35. Qg4 {[%clk 0:00:06.6]} 35... Nxd2 {[%clk 0:00:41.3]} 36.
exf7+ {[%clk 0:00:06.5]} 36... Rxf7 {[%clk 0:00:41.8]} 37. Ne6 {[%clk
0:00:06.7]} 37... Re8 {[%clk 0:00:35.2]} 38. Nxg5 {[%clk 0:00:07.2]} 38... hxg5
{[%clk 0:00:35.4]} 39. Rxd2 {[%clk 0:00:07.7]} 39... Qe7 {[%clk 0:00:28.1]} 40.
Kh2 {[%clk 0:00:05.9]} 40... Qe1 {[%clk 0:00:18.8]} 41. Qd4 {[%clk 0:00:05.2]}
41... Rd7 {[%clk 0:00:09.9]} 42. Bxd5+ {[%clk 0:00:04.5]} 42... Kh8 {[%clk
0:00:10.4]} 43. Qd3 {[%clk 0:00:01.4]} 43... Qe5 {[%clk 0:00:08.5]} 44. Qd4
{[%clk 0:00:01.2]} 44... Qxd4 {[%clk 0:00:08.2]} 45. Rxd4 {[%clk 0:00:02]} 45...
Red8 {[%clk 0:00:08.9]} 46. c4 {[%clk 0:00:01.6]} 46... bxc3 {[%clk 0:00:09.3]}
47. bxc3 {[%clk 0:00:01.9]} 47... Rxd5 {[%clk 0:00:09.9]} 48. Rg4 {[%clk
0:00:01.3]} 48... Rd2+ {[%clk 0:00:09.7]} 49. Kg1 {[%clk 0:00:02.2]} 49... R8d5
{[%clk 0:00:08.7]} 50. Kf1 {[%clk 0:00:02.2]} 50... Rc2 {[%clk 0:00:08.5]} 51.
Ke1 {[%clk 0:00:02.6]} 51... Rxc3 {[%clk 0:00:09]} 52. Rb4 {[%clk 0:00:03]}
52... Rxg3 {[%clk 0:00:09.1]} 53. Rb8+ {[%clk 0:00:03.4]} 53... Kh7 {[%clk
0:00:09.8]} 54. h4 {[%clk 0:00:03.4]} 54... gxh4 {[%clk 0:00:09.9]} 55. Rb4
{[%clk 0:00:03.9]} 55... Rh5 {[%clk 0:00:09.6]} 56. Rf4 {[%clk 0:00:03.5]} 56...
Rg6 {[%clk 0:00:09.9]} 57. Kf2 {[%clk 0:00:04.1]} 57... h3 {[%clk 0:00:10.4]}
58. Kf3 {[%clk 0:00:03.2]} 58... h2 {[%clk 0:00:11.1]} 59. Rh4 {[%clk
0:00:02.9]} 59... Rxh4 {[%clk 0:00:10.6]} 60. Ke3 {[%clk 0:00:03.2]} 60... h1=Q
{[%clk 0:00:10.3]} 61. Kf2 {[%clk 0:00:04.1]} 61... Qg2+ {[%clk 0:00:08.6]} 62.
Ke3 {[%clk 0:00:04.5]} 62... Rh3+ {[%clk 0:00:08.9]} 63. Kd4 {[%clk 0:00:05.1]}
63... Qg4+ {[%clk 0:00:09.5]} 64. Ke5 {[%clk 0:00:06]} 64... Rh5# {[%clk
0:00:09.4]} 0-1

[Event "Late-Titled-Tuesday-Blitz-September-26-2023"]
[Site "Chess.com"]
[Date "2023.09.26"]
[Round "7"]
[White "McCarthyStone"]
[Black "Bodhanas"]
[Result "0-1"]
[WhiteElo "2386"]
[BlackElo "2105"]
[TimeControl "180+1"]
[EndTime "15:15:40 PDT"]
[Termination "Bodhanas won by checkmate"]

1. b3 {[%clk 0:03:00.9]} 1... Nf6 {[%clk 0:02:53.7]} 2. Bb2 {[%clk 0:03:01.8]}
2... b6 {[%clk 0:02:52.6]} 3. Nf3 {[%clk 0:03:00.5]} 3... Bb7 {[%clk 0:02:52.2]}
4. e3 {[%clk 0:03:01.4]} 4... d5 {[%clk 0:02:51]} 5. d4 {[%clk 0:03:01.8]} 5...
e6 {[%clk 0:02:50.8]} 6. Bd3 {[%clk 0:03:02.3]} 6... Nbd7 {[%clk 0:02:49.1]} 7.
Nbd2 {[%clk 0:03:02.5]} 7... Bd6 {[%clk 0:02:48.5]} 8. Qe2 {[%clk 0:03:02.5]}
8... Qe7 {[%clk 0:02:41]} 9. Ne5 {[%clk 0:03:02.5]} 9... Bxe5 {[%clk 0:02:22.1]}
10. dxe5 {[%clk 0:03:03.4]} 10... Ne4 {[%clk 0:02:21.7]} 11. Nxe4 {[%clk
0:02:55.1]} 11... dxe4 {[%clk 0:02:18.5]} 12. Ba6 {[%clk 0:02:53.7]} 12... Bxa6
{[%clk 0:02:00.8]} 13. Qxa6 {[%clk 0:02:54.6]} 13... O-O {[%clk 0:01:57.9]} 14.
O-O-O {[%clk 0:02:44]} 14... Nc5 {[%clk 0:01:53.1]} 15. Qb5 {[%clk 0:02:33.9]}
15... Rad8 {[%clk 0:01:46.6]} 16. Bd4 {[%clk 0:02:19.1]} 16... Rd5 {[%clk
0:01:39.6]} 17. Qc4 {[%clk 0:02:06.5]} 17... b5 {[%clk 0:01:28.4]} 18. Bxc5
{[%clk 0:01:49.1]} 18... Qxc5 {[%clk 0:01:23.3]} 19. Qxc5 {[%clk 0:01:19.2]}
19... Rxc5 {[%clk 0:01:22.2]} 20. Rd7 {[%clk 0:01:19.9]} 20... a5 {[%clk
0:01:03]} 21. Rhd1 {[%clk 0:01:19.1]} 21... g6 {[%clk 0:00:58.6]} 22. R1d4
{[%clk 0:01:18.2]} 22... Rxe5 {[%clk 0:00:57]} 23. Rxc7 {[%clk 0:01:17.8]} 23...
b4 {[%clk 0:00:54.1]} 24. Rcc4 {[%clk 0:01:15.8]} 24... f5 {[%clk 0:00:51.6]}
25. Rd7 {[%clk 0:01:15.1]} 25... Rd5 {[%clk 0:00:47]} 26. Re7 {[%clk 0:01:13.2]}
26... Rf7 {[%clk 0:00:37.9]} 27. Rxe6 {[%clk 0:01:11.1]} 27... Rfd7 {[%clk
0:00:37.8]} 28. h4 {[%clk 0:00:57.4]} 28... Kf7 {[%clk 0:00:34.8]} 29. Rec6
{[%clk 0:00:55.5]} 29... Rd1+ {[%clk 0:00:31.6]} 30. Kb2 {[%clk 0:00:54.3]}
30... R1d2 {[%clk 0:00:27.9]} 31. f3 {[%clk 0:00:29.4]} 31... exf3 {[%clk
0:00:23.5]} 32. gxf3 {[%clk 0:00:30.3]} 32... Re2 {[%clk 0:00:22.2]} 33. e4
{[%clk 0:00:25.1]} 33... fxe4 {[%clk 0:00:21.6]} 34. fxe4 {[%clk 0:00:22.8]}
34... Re7 {[%clk 0:00:20.9]} 35. R6c5 {[%clk 0:00:19.3]} 35... R2xe4 {[%clk
0:00:19.9]} 36. Rxa5 {[%clk 0:00:14.9]} 36... Rxc4 {[%clk 0:00:18.7]} 37. bxc4
{[%clk 0:00:15.8]} 37... Re4 {[%clk 0:00:18.6]} 38. Kb3 {[%clk 0:00:13.8]} 38...
Rxh4 {[%clk 0:00:18.1]} 39. c5 {[%clk 0:00:14.4]} 39... Ke6 {[%clk 0:00:17.2]}
40. Ra7 {[%clk 0:00:14.4]} 40... Kd5 {[%clk 0:00:16.8]} 41. Rd7+ {[%clk
0:00:11]} 41... Kxc5 {[%clk 0:00:15.9]} 42. Rc7+ {[%clk 0:00:09.5]} 42... Kb5
{[%clk 0:00:14]} 43. Rb7+ {[%clk 0:00:09.4]} 43... Kc5 {[%clk 0:00:13.1]} 44.
Rc7+ {[%clk 0:00:09.7]} 44... Kb5 {[%clk 0:00:13.5]} 45. Rg7 {[%clk 0:00:10.4]}
45... Rh3+ {[%clk 0:00:12.8]} 46. Kb2 {[%clk 0:00:10.6]} 46... Rh5 {[%clk
0:00:11.7]} 47. Kb3 {[%clk 0:00:10.5]} 47... Rh3+ {[%clk 0:00:11.6]} 48. Kb2
{[%clk 0:00:11]} 48... Kc4 {[%clk 0:00:11.3]} 49. Rc7+ {[%clk 0:00:10.7]} 49...
Kb5 {[%clk 0:00:11.4]} 50. Rb7+ {[%clk 0:00:11.2]} 50... Kc4 {[%clk 0:00:11.7]}
51. Rb6 {[%clk 0:00:10.3]} 51... Kc5 {[%clk 0:00:11.5]} 52. Rf6 {[%clk 0:00:09]}
52... Kc4 {[%clk 0:00:10.8]} 53. Rf4+ {[%clk 0:00:08.9]} 53... Kc5 {[%clk
0:00:11.1]} 54. Rf7 {[%clk 0:00:05.7]} 54... Kc4 {[%clk 0:00:09.9]} 55. a4
{[%clk 0:00:04.8]} 55... bxa3+ {[%clk 0:00:09.4]} 56. Ka2 {[%clk 0:00:05.3]}
56... g5 {[%clk 0:00:09.1]} 57. Rg7 {[%clk 0:00:04.5]} 57... h6 {[%clk 0:00:09]}
58. Rc7+ {[%clk 0:00:04.2]} 58... Kd5 {[%clk 0:00:08.5]} 59. c4+ {[%clk
0:00:04.7]} 59... Kd6 {[%clk 0:00:08.8]} 60. Rg7 {[%clk 0:00:04.6]} 60... Kc5
{[%clk 0:00:09]} 61. Rc7+ {[%clk 0:00:04.6]} 61... Kb4 {[%clk 0:00:08.1]} 62. c5
{[%clk 0:00:04.1]} 62... Rh2+ {[%clk 0:00:08.1]} 63. Kb1 {[%clk 0:00:04.2]}
63... Kc3 {[%clk 0:00:08.2]} 64. c6 {[%clk 0:00:02.5]} 64... Rh1+ {[%clk
0:00:05.6]} 65. Ka2 {[%clk 0:00:02.9]} 65... Rc1 {[%clk 0:00:05.2]} 66. Kxa3
{[%clk 0:00:02.8]} 66... Ra1# {[%clk 0:00:05.1]} 0-1

[Event "Late-Titled-Tuesday-Blitz-September-26-2023"]
[Site "Chess.com"]
[Date "2023.09.26"]
[Round "7"]
[White "micke12a"]
[Black "Herman-NY"]
[Result "0-1"]
[WhiteElo "2342"]
[BlackElo "2495"]
[TimeControl "180+1"]
[EndTime "15:15:42 PDT"]
[Termination "Herman-NY won by checkmate"]

1. e4 {[%clk 0:03:00.9]} 1... c5 {[%clk 0:03:00]} 2. Nc3 {[%clk 0:02:59.4]} 2...
e6 {[%clk 0:03:00.1]} 3. Nge2 {[%clk 0:02:56.7]} 3... a6 {[%clk 0:03:00.2]} 4.
g3 {[%clk 0:02:55.6]} 4... b5 {[%clk 0:03:00.3]} 5. d4 {[%clk 0:02:55]} 5...
cxd4 {[%clk 0:03:00.1]} 6. Nxd4 {[%clk 0:02:55.9]} 6... Bb7 {[%clk 0:03:00.6]}
7. Bg2 {[%clk 0:02:56.4]} 7... Nc6 {[%clk 0:03:01.1]} 8. O-O {[%clk 0:02:52.1]}
8... Nxd4 {[%clk 0:02:50.4]} 9. Qxd4 {[%clk 0:02:36.6]} 9... Rc8 {[%clk
0:02:50.5]} 10. Re1 {[%clk 0:02:31.7]} 10... f6 {[%clk 0:02:44]} 11. Bf4 {[%clk
0:02:01.5]} 11... Bc5 {[%clk 0:02:27.4]} 12. Qd3 {[%clk 0:01:59.1]} 12... Ne7
{[%clk 0:02:20.5]} 13. Rad1 {[%clk 0:01:44.8]} 13... Bc6 {[%clk 0:02:14.9]} 14.
a4 {[%clk 0:01:39.3]} 14... b4 {[%clk 0:02:06.4]} 15. Nd5 {[%clk 0:01:29.2]}
15... O-O {[%clk 0:02:02.8]} 16. Nxe7+ {[%clk 0:01:28]} 16... Qxe7 {[%clk
0:02:01.4]} 17. b3 {[%clk 0:01:27.4]} 17... e5 {[%clk 0:01:27.8]} 18. Be3 {[%clk
0:01:21.6]} 18... Bxe3 {[%clk 0:01:22.5]} 19. Rxe3 {[%clk 0:01:21.5]} 19... a5
{[%clk 0:01:21.9]} 20. Bf1 {[%clk 0:01:18.3]} 20... Rc7 {[%clk 0:00:56.2]} 21.
Qd6 {[%clk 0:01:03.6]} 21... Qxd6 {[%clk 0:00:55.6]} 22. Rxd6 {[%clk 0:01:04.5]}
22... Kf7 {[%clk 0:00:54.7]} 23. Bc4+ {[%clk 0:01:04.2]} 23... Ke7 {[%clk
0:00:55.2]} 24. Rd1 {[%clk 0:01:02.5]} 24... Bxa4 {[%clk 0:00:51.9]} 25. Rd5
{[%clk 0:00:59.2]} 25... Rxc4 {[%clk 0:00:35.3]} 26. bxc4 {[%clk 0:00:39.2]}
26... Bxc2 {[%clk 0:00:35.4]} 27. Rxa5 {[%clk 0:00:39.3]} 27... Rb8 {[%clk
0:00:31.7]} 28. Ra2 {[%clk 0:00:20.5]} 28... b3 {[%clk 0:00:28.5]} 29. Rb2
{[%clk 0:00:20]} 29... Kd6 {[%clk 0:00:15.9]} 30. Rc3 {[%clk 0:00:17.7]} 30...
Kc5 {[%clk 0:00:13.9]} 31. Kg2 {[%clk 0:00:14.6]} 31... Rb4 {[%clk 0:00:12.4]}
32. f3 {[%clk 0:00:09.7]} 32... Rxc4 {[%clk 0:00:11.7]} 33. Rcxb3 {[%clk
0:00:09.9]} 33... Bxb3 {[%clk 0:00:11.9]} 34. Rxb3 {[%clk 0:00:10.5]} 34... Rd4
{[%clk 0:00:10.4]} 35. Rb7 {[%clk 0:00:09.3]} 35... Kd6 {[%clk 0:00:09.4]} 36.
Rb6+ {[%clk 0:00:08.7]} 36... Ke7 {[%clk 0:00:09.3]} 37. Kh3 {[%clk 0:00:09.2]}
37... Kf7 {[%clk 0:00:07.6]} 38. Kg4 {[%clk 0:00:09.1]} 38... g6 {[%clk
0:00:07.7]} 39. h4 {[%clk 0:00:08.5]} 39... h5+ {[%clk 0:00:08.2]} 40. Kh3
{[%clk 0:00:08.8]} 40... Rd3 {[%clk 0:00:08.9]} 41. Kg2 {[%clk 0:00:09.2]} 41...
Rd4 {[%clk 0:00:07]} 42. Rb7 {[%clk 0:00:09.1]} 42... Rd2+ {[%clk 0:00:07.3]}
43. Kf1 {[%clk 0:00:08.9]} 43... Ke6 {[%clk 0:00:07.4]} 44. Rb6+ {[%clk
0:00:08.8]} 44... Rd6 {[%clk 0:00:07.7]} 45. Rb8 {[%clk 0:00:08.9]} 45... Rd4
{[%clk 0:00:04.8]} 46. Ke2 {[%clk 0:00:08.8]} 46... f5 {[%clk 0:00:05]} 47. Rb6+
{[%clk 0:00:08.3]} 47... d6 {[%clk 0:00:05.3]} 48. exf5+ {[%clk 0:00:06.8]}
48... gxf5 {[%clk 0:00:06.2]} 49. Rb8 {[%clk 0:00:06.7]} 49... f4 {[%clk
0:00:06.8]} 50. gxf4 {[%clk 0:00:04.6]} 50... Rxf4 {[%clk 0:00:06.7]} 51. Re8+
{[%clk 0:00:03.5]} 51... Kd5 {[%clk 0:00:07.1]} 52. Rg8 {[%clk 0:00:02.6]} 52...
Rxh4 {[%clk 0:00:07.3]} 53. Rg5 {[%clk 0:00:03.3]} 53... Kd4 {[%clk 0:00:06.7]}
54. Rg8 {[%clk 0:00:03.1]} 54... Rh2+ {[%clk 0:00:06.7]} 55. Kf1 {[%clk
0:00:02.8]} 55... d5 {[%clk 0:00:06.3]} 56. Kg1 {[%clk 0:00:03.7]} 56... Rh4
{[%clk 0:00:05.1]} 57. Rg5 {[%clk 0:00:04.1]} 57... Rf4 {[%clk 0:00:03.1]} 58.
Rxh5 {[%clk 0:00:04.1]} 58... Rxf3 {[%clk 0:00:03.6]} 59. Kg2 {[%clk 0:00:05]}
59... e4 {[%clk 0:00:03.6]} 60. Rh1 {[%clk 0:00:05.7]} 60... Rf5 {[%clk
0:00:03.8]} 61. Rd1+ {[%clk 0:00:06.2]} 61... Ke5 {[%clk 0:00:04.7]} 62. Re1
{[%clk 0:00:06.7]} 62... d4 {[%clk 0:00:05.3]} 63. Rb1 {[%clk 0:00:07.1]} 63...
d3 {[%clk 0:00:04.6]} 64. Rb5+ {[%clk 0:00:07.7]} 64... Kf4 {[%clk 0:00:05.1]}
65. Rb1 {[%clk 0:00:08.4]} 65... Ke3 {[%clk 0:00:05.2]} 66. Re1+ {[%clk
0:00:08.1]} 66... Kd4 {[%clk 0:00:05.7]} 67. Rd1 {[%clk 0:00:08.3]} 67... e3
{[%clk 0:00:05.9]} 68. Ra1 {[%clk 0:00:09.1]} 68... e2 {[%clk 0:00:05.4]} 69.
Ra4+ {[%clk 0:00:10]} 69... Ke3 {[%clk 0:00:05.9]} 70. Ra3 {[%clk 0:00:10.4]}
70... e1=Q {[%clk 0:00:05.8]} 71. Rc3 {[%clk 0:00:09.9]} 71... Qf2+ {[%clk
0:00:05.2]} 72. Kh3 {[%clk 0:00:09.8]} 72... Qf3+ {[%clk 0:00:05.7]} 73. Kh2
{[%clk 0:00:09.4]} 73... Rh5+ {[%clk 0:00:06.6]} 74. Kg1 {[%clk 0:00:09.4]}
74... Rh1# {[%clk 0:00:07.5]} 0-1

[Event "Late-Titled-Tuesday-Blitz-September-26-2023"]
[Site "Chess.com"]
[Date "2023.09.26"]
[Round "7"]
[White "IgorBjelobrk"]
[Black "dretch"]
[Result "1/2-1/2"]
[WhiteElo "2621"]
[BlackElo "2842"]
[TimeControl "180+1"]
[EndTime "15:15:55 PDT"]
[Termination "Game drawn by repetition"]

1. d4 {[%clk 0:03:00.9]} 1... d5 {[%clk 0:02:59.6]} 2. c4 {[%clk 0:03:00.9]}
2... c6 {[%clk 0:02:59.8]} 3. Nf3 {[%clk 0:03:01]} 3... Nf6 {[%clk 0:03:00]} 4.
Qc2 {[%clk 0:03:01.2]} 4... dxc4 {[%clk 0:02:59.5]} 5. e4 {[%clk 0:03:00.5]}
5... b5 {[%clk 0:02:57.6]} 6. b3 {[%clk 0:03:00.5]} 6... cxb3 {[%clk 0:02:57.2]}
7. axb3 {[%clk 0:03:01.4]} 7... e6 {[%clk 0:02:57.5]} 8. Bd3 {[%clk 0:02:59.9]}
8... Bb7 {[%clk 0:02:54.1]} 9. O-O {[%clk 0:02:59.4]} 9... h6 {[%clk 0:02:51.1]}
10. Nc3 {[%clk 0:02:55.9]} 10... Na6 {[%clk 0:02:40.8]} 11. Qe2 {[%clk
0:02:55.6]} 11... Nb4 {[%clk 0:02:38.7]} 12. Bb1 {[%clk 0:02:55.7]} 12... a6
{[%clk 0:02:33.5]} 13. Rd1 {[%clk 0:02:53.5]} 13... Be7 {[%clk 0:02:31.1]} 14.
h3 {[%clk 0:02:53.5]} 14... Qc7 {[%clk 0:02:29.8]} 15. Bb2 {[%clk 0:02:38.6]}
15... Rd8 {[%clk 0:02:27.4]} 16. Rc1 {[%clk 0:02:38.2]} 16... Qb6 {[%clk
0:02:22.9]} 17. e5 {[%clk 0:02:36]} 17... Nd7 {[%clk 0:02:20.3]} 18. Ne4 {[%clk
0:02:36.1]} 18... Nd5 {[%clk 0:01:11.6]} 19. Qc2 {[%clk 0:02:11.9]} 19... Rc8
{[%clk 0:01:06.3]} 20. Nc5 {[%clk 0:02:06.1]} 20... Nxc5 {[%clk 0:01:04.5]} 21.
dxc5 {[%clk 0:02:06.1]} 21... Qc7 {[%clk 0:01:04.8]} 22. Qe4 {[%clk 0:02:03.8]}
22... a5 {[%clk 0:01:02.9]} 23. Nd4 {[%clk 0:01:53]} 23... Bg5 {[%clk
0:00:55.2]} 24. Rd1 {[%clk 0:01:48.6]} 24... Rd8 {[%clk 0:00:49.3]} 25. g3
{[%clk 0:01:47.9]} 25... Be7 {[%clk 0:00:46.6]} 26. Rc1 {[%clk 0:01:47.6]} 26...
h5 {[%clk 0:00:47]} 27. h4 {[%clk 0:01:46.3]} 27... g5 {[%clk 0:00:46.4]} 28.
hxg5 {[%clk 0:01:43.9]} 28... Bxg5 {[%clk 0:00:38.3]} 29. f4 {[%clk 0:01:44]}
29... Bh6 {[%clk 0:00:34.3]} 30. Rf1 {[%clk 0:01:40]} 30... Bf8 {[%clk
0:00:27.1]} 31. Rc1 {[%clk 0:01:38]} 31... h4 {[%clk 0:00:27.5]} 32. g4 {[%clk
0:01:37.4]} 32... h3 {[%clk 0:00:27.3]} 33. Kh2 {[%clk 0:01:37.3]} 33... Bc8
{[%clk 0:00:16.4]} 34. g5 {[%clk 0:01:33.8]} 34... Rh4 {[%clk 0:00:15.1]} 35.
Ne2 {[%clk 0:01:25]} 35... Ne7 {[%clk 0:00:15.5]} 36. Bd4 {[%clk 0:01:18.8]}
36... Nf5 {[%clk 0:00:14.5]} 37. Bf2 {[%clk 0:01:18.9]} 37... Rh8 {[%clk
0:00:14.6]} 38. Ra2 {[%clk 0:01:14.5]} 38... b4 {[%clk 0:00:13.5]} 39. Qf3
{[%clk 0:01:09.2]} 39... Ba6 {[%clk 0:00:13.6]} 40. Ng3 {[%clk 0:01:05.2]} 40...
Nd4 {[%clk 0:00:12.8]} 41. Bxd4 {[%clk 0:01:03.8]} 41... Rxd4 {[%clk 0:00:12.7]}
42. g6 {[%clk 0:01:00.6]} 42... fxg6 {[%clk 0:00:12.6]} 43. Bxg6+ {[%clk
0:01:00.1]} 43... Kd8 {[%clk 0:00:13.2]} 44. Ne4 {[%clk 0:00:46.9]} 44... Bh6
{[%clk 0:00:13.3]} 45. Rd1 {[%clk 0:00:35.4]} 45... Rd5 {[%clk 0:00:11.5]} 46.
Rxd5+ {[%clk 0:00:32.7]} 46... cxd5 {[%clk 0:00:11.7]} 47. Nd6 {[%clk
0:00:33.4]} 47... Kd7 {[%clk 0:00:10.3]} 48. f5 {[%clk 0:00:27.2]} 48... Rf8
{[%clk 0:00:10.5]} 49. fxe6+ {[%clk 0:00:25.6]} 49... Kc6 {[%clk 0:00:11]} 50.
Nf7 {[%clk 0:00:17.2]} 50... Bg7 {[%clk 0:00:11.4]} 51. Kxh3 {[%clk 0:00:15.8]}
51... Bxe5 {[%clk 0:00:10.3]} 52. Rd2 {[%clk 0:00:15.5]} 52... Bc8 {[%clk
0:00:09.1]} 53. Qxd5+ {[%clk 0:00:15.1]} 53... Kb5 {[%clk 0:00:09.7]} 54. c6+
{[%clk 0:00:13.4]} 54... Ka6 {[%clk 0:00:09.3]} 55. Nxe5 {[%clk 0:00:12.4]}
55... Rh8+ {[%clk 0:00:08.7]} 56. Kg4 {[%clk 0:00:11.8]} 56... Qe7 {[%clk
0:00:08.4]} 57. Bd3+ {[%clk 0:00:10.9]} 57... Ka7 {[%clk 0:00:07.3]} 58. Qd4+
{[%clk 0:00:11.3]} 58... Ka8 {[%clk 0:00:07.2]} 59. Bf5 {[%clk 0:00:07.6]} 59...
Rh4+ {[%clk 0:00:06.8]} 60. Kf3 {[%clk 0:00:07.9]} 60... Rxd4 {[%clk 0:00:07.6]}
61. Rxd4 {[%clk 0:00:08.4]} 61... Qc5 {[%clk 0:00:08]} 62. Ke4 {[%clk
0:00:08.3]} 62... Ka7 {[%clk 0:00:08]} 63. e7 {[%clk 0:00:08.2]} 63... Qxe7
{[%clk 0:00:08.1]} 64. Bxc8 {[%clk 0:00:08.2]} 64... Qh4+ {[%clk 0:00:07.7]} 65.
Kd5 {[%clk 0:00:07.8]} 65... Qd8+ {[%clk 0:00:07.4]} 66. Bd7 {[%clk 0:00:08.2]}
66... Kb6 {[%clk 0:00:07.8]} 67. Rc4 {[%clk 0:00:08.4]} 67... Kc7 {[%clk
0:00:08.1]} 68. Rc5 {[%clk 0:00:08.3]} 68... Qg8+ {[%clk 0:00:08.1]} 69. Kd4
{[%clk 0:00:07.7]} 69... Qxb3 {[%clk 0:00:08.2]} 70. Rxa5 {[%clk 0:00:08]} 70...
Qc3+ {[%clk 0:00:08]} 71. Kd5 {[%clk 0:00:08.5]} 71... Qd2+ {[%clk 0:00:08.1]}
72. Kc5 {[%clk 0:00:08.2]} 72... Qc3+ {[%clk 0:00:08.1]} 73. Kd5 {[%clk
0:00:08.1]} 73... Qd2+ {[%clk 0:00:08.3]} 74. Kc5 {[%clk 0:00:08.6]} 74... Qc3+
{[%clk 0:00:07.7]} 75. Kd5 {[%clk 0:00:08.9]} 1/2-1/2